fUST/lending_fUST_20250623
["ID","MTS","AMOUNT","RATE_DAILY","PERIOD"]
[367171979,1750686641066,-460.0,0.00021917,2]
[367171980,1750686641078,-460.0,0.00021917,2]
[367171981,1750686641091,-940.87,0.00021917,2]
[367171982,1750686641102,-1301.41,0.00021917,2]
[367171983,1750686641114,-460.0,0.00021917,2]
[367171984,1750686641126,-460.0,0.00021917,2]
[367171985,1750686641138,-553.14,0.00021917,2]
[367171986,1750686641150,-460.0,0.00021917,2]
[367171987,1750686641162,-541.16748903,0.00021917,2]
[367171988,1750686641174,-760.92,0.00021917,2]
[367171989,1750686641185,-460.0,0.00021917,2]
[367171990,1750686641197,-460.0,0.00021917,2]
[367171991,1750686641209,-547.96,0.00021917,2]
[367171992,1750686641220,-463.76743696,0.00021917,2]
[367171993,1750686641231,-460.0,0.00021917,2]
[367171994,1750686641243,-460.0,0.00021917,2]
[367171995,1750686641254,-460.0,0.00021917,2]
[367171996,1750686641265,-460.0,0.00021917,2]
[367171997,1750686641279,-460.0,0.00021917,2]
[367171998,1750686641291,-833.99,0.00021917,2]
[367171999,1750686641302,-1160.34,0.00021917,2]
[367172000,1750686641315,-460.0,0.00021917,2]
[367172001,1750686641326,-460.0,0.00021917,2]
[367172002,1750686641341,-664.37,0.00021917,2]
[367172003,1750686641352,-2382.83,0.00021917,2]
[367172004,1750686641368,-460.0,0.00021917,2]
[367172005,1750686641379,-1042.27,0.00021917,2]
[367172006,1750686641390,-542.1,0.00021917,2]
[367172007,1750686641406,-460.0,0.00021917,2]
[367172008,1750686641418,-460.0,0.00021917,2]
[367172009,1750686641430,-835.19,0.00021917,2]
[367172010,1750686641443,-460.0,0.00021917,2]
[367172011,1750686641455,-460.0,0.00021917,2]
[367172012,1750686641468,-460.0,0.00021917,2]
[367172013,1750686641480,-460.0,0.00021917,2]
[367172014,1750686641493,-460.0,0.00021917,2]
[367172015,1750686641506,-460.0,0.00021917,2]
[367172016,1750686641518,-460.0,0.00021917,2]
[367172017,1750686641531,-460.0,0.00021917,2]
[367172018,1750686641542,-944.42,0.00021917,2]
[367172019,1750686641554,-460.0,0.00021917,2]
[367172020,1750686641566,-845.96,0.00021917,2]
[367172021,1750686641577,-460.0,0.00021917,2]
[367172022,1750686641595,-460.0,0.00021917,2]
[367172023,1750686641607,-460.0,0.00021917,2]
[367172024,1750686641619,-460.0,0.00021917,2]
[367172025,1750686641631,-460.0,0.00021917,2]
[367172026,1750686641643,-460.0,0.00021917,2]
[367172027,1750686641655,-500.0,0.00021917,2]
[367172028,1750686641667,-500.0,0.00021917,2]
[367172029,1750686641678,-460.0,0.00021917,2]
[367172030,1750686641690,-460.0,0.00021917,2]
[367172031,1750686641701,-460.0,0.00021917,2]
[367172032,1750686641712,-460.0,0.00021917,2]
[367172033,1750686641724,-460.0,0.00021917,2]
[367172034,1750686641735,-461.03255266,0.00021917,2]
[367172035,1750686641746,-460.0,0.00021917,2]
[367172036,1750686641757,-460.0,0.00021917,2]
[367172037,1750686641769,-251.91820104,0.00021917,2]
[367172038,1750686641780,-460.0,0.00021917,2]
[367172039,1750686641791,-460.0,0.00021917,2]
[367172040,1750686641801,-460.0,0.00021917,2]
[367172041,1750686641813,-460.0,0.00021917,2]
[367172042,1750686641824,-460.0,0.00021917,2]
[367172043,1750686641837,-460.0,0.00021917,2]
[367172044,1750686641848,-460.0,0.00021917,2]
[367172045,1750686641859,-460.0,0.00021917,2]
[367172046,1750686641870,-460.0,0.00021917,2]
[367172047,1750686641881,-405.80203136,0.00021917,2]
[367172048,1750686641892,-1281.49,0.00021917,2]
[367172049,1750686641903,-460.0,0.00021917,2]
[367172050,1750686641913,-433.61608554,0.00021917,2]
[367172051,1750686641925,-989.23,0.00021917,2]
[367172052,1750686641935,-460.0,0.00021917,2]
[367172053,1750686641946,-460.0,0.00021917,2]
[367172054,1750686641957,-460.0,0.00021917,2]
[367172055,1750686641968,-584.14,0.00021917,2]
[367172056,1750686641978,-460.0,0.00021917,2]
[367172057,1750686641989,-460.0,0.00021917,2]
[367172058,1750686642000,-289.12848526,0.00021917,2]
[367172059,1750686642011,-460.0,0.00021917,2]
[367172060,1750686642021,-151.0,0.00021917,2]
[367172061,1750686642033,-460.0,0.00021917,2]
[367172062,1750686642043,-460.0,0.00021917,2]
[367172063,1750686642055,-468.04,0.00021917,2]
[367172064,1750686642067,-460.0,0.00021917,2]
[367172065,1750686642077,-460.0,0.00021917,2]
[367172066,1750686642091,-460.0,0.00021917,2]
[367172067,1750686642101,-460.0,0.00021917,2]
[367172068,1750686642111,-460.0,0.00021917,2]
[367172069,1750686642122,-2770.24,0.00021917,2]
[367172070,1750686642133,-460.0,0.00021917,2]
[367172071,1750686642145,-460.0,0.00021917,2]
[367172072,1750686642155,-460.0,0.00021917,2]
[367172073,1750686642166,-460.0,0.00021917,2]
[367172074,1750686642177,-525.83812437,0.00021917,2]
[367172075,1750686642187,-460.0,0.00021917,2]
[367172076,1750686642198,-460.0,0.00021917,2]
[367172077,1750686642208,-1000.0,0.00021917,2]
[367172078,1750686642219,-460.0,0.00021917,2]
[367172079,1750686642229,-460.0,0.00021917,2]
[367172080,1750686642240,-460.0,0.00021917,2]
[367172081,1750686642251,-460.0,0.00021917,2]
[367172082,1750686642262,-460.0,0.00021917,2]
[367172083,1750686642272,-460.0,0.00021917,2]
[367172084,1750686642283,-460.0,0.00021917,2]
[367172085,1750686642295,-460.0,0.00021917,2]
[367172086,1750686642308,-460.0,0.00021917,2]
[367172087,1750686642319,-460.0,0.00021917,2]
[367172088,1750686642329,-502.03,0.00021917,2]
[367172089,1750686642343,-460.0,0.00021917,2]
[367172090,1750686642353,-460.0,0.00021917,2]
[367172091,1750686642364,-943.23,0.00021917,2]
[367172092,1750686642375,-460.0,0.00021917,2]
[367172093,1750686642385,-460.0,0.00021917,2]
[367172094,1750686642396,-460.0,0.00021917,2]
[367172095,1750686642408,-460.0,0.00021917,2]
[367172096,1750686642419,-460.0,0.00021917,2]
[367172097,1750686642430,-460.0,0.00021917,2]
[367172098,1750686642441,-460.0,0.00021917,2]
[367172099,1750686642453,-460.0,0.00021917,2]
[367172100,1750686642464,-460.0,0.00021917,2]
[367172101,1750686642474,-434.9582694,0.00021917,2]
[367172102,1750686642486,-304.83556375,0.00021917,2]
[367172103,1750686642497,-460.0,0.00021917,2]
[367172104,1750686642508,-550.78,0.00021917,2]
[367172106,1750686642925,-529.78,0.00021917,2]
[367172109,1750686642937,-460.0,0.00021917,2]
[367172110,1750686642947,-460.0,0.00021917,2]
[367172111,1750686642957,-460.0,0.00021917,2]
[367172112,1750686642967,-460.0,0.00021917,2]
[367172113,1750686642976,-460.0,0.00021917,2]
[367172114,1750686642986,-460.0,0.00021917,2]
[367172115,1750686642995,-460.0,0.00021917,2]
[367172116,1750686643005,-460.0,0.00021917,2]
[367172117,1750686643014,-460.0,0.00021917,2]
[367172118,1750686643024,-460.0,0.00021917,2]
[367172119,1750686643034,-460.0,0.00021917,2]
[367172120,1750686643043,-460.0,0.00021917,2]
[367172121,1750686643053,-460.0,0.00021917,2]
[367172122,1750686643062,-460.0,0.00021917,2]
[367172123,1750686643072,-353.49443933,0.00021917,2]
[367172124,1750686643081,-460.0,0.00021917,2]
[367172125,1750686643092,-460.0,0.00021917,2]
[367172126,1750686643102,-577.79,0.00021917,2]
[367172127,1750686643111,-287.46108804,0.00021917,2]
[367172128,1750686643121,-460.0,0.00021917,2]
[367172130,1750686643130,-948.34,0.00021917,2]
[367172131,1750686643139,-460.0,0.00021917,2]
[367172132,1750686643149,-589.21,0.00021917,2]
[367172133,1750686643158,-460.0,0.00021917,2]
[367172134,1750686643168,-916.6,0.00021917,2]
[367172135,1750686643177,-5947.2,0.00021917,2]
[367172136,1750686643187,-460.0,0.00021917,2]
[367172138,1750686643196,-460.0,0.00021917,2]
[367172140,1750686643205,-460.0,0.00021917,2]
[367172142,1750686643215,-460.0,0.00021917,2]
[367172144,1750686643224,-460.0,0.00021917,2]
[367172146,1750686643233,-460.0,0.00021917,2]
[367172148,1750686643242,-460.0,0.00021917,2]
[367172150,1750686643251,-460.0,0.00021917,2]
[367172152,1750686643261,-460.0,0.00021917,2]
[367172154,1750686643270,-460.0,0.00021917,2]
[367172155,1750686643284,-1045.69,0.00021917,2]
[367172157,1750686643293,-460.0,0.00021917,2]
[367172159,1750686643303,-553.82954018,0.00021917,2]
[367172161,1750686643312,-460.0,0.00021917,2]
[367172163,1750686643323,-460.0,0.00021917,2]
[367172165,1750686643332,-460.0,0.00021917,2]
[367172167,1750686643344,-500.0,0.00021917,2]
[367172169,1750686643353,-500.0,0.00021917,2]
[367172171,1750686643364,-500.0,0.00021917,2]
[367172174,1750686643375,-500.0,0.00021917,2]
[367172176,1750686643384,-500.0,0.00021917,2]
[367172178,1750686643394,-500.0,0.00021917,2]
[367172180,1750686643405,-500.0,0.00021917,2]
[367172182,1750686643415,-500.0,0.00021917,2]
[367172184,1750686643424,-534.34,0.00021917,2]
[367172185,1750686643434,-500.0,0.00021917,2]
[367172187,1750686643443,-500.0,0.00021917,2]
[367172188,1750686643453,-500.0,0.00021917,2]
[367172189,1750686643463,-2348.84,0.00021917,2]
[367172190,1750686643473,-500.0,0.00021917,2]
[367172191,1750686643483,-500.0,0.00021917,2]
[367172192,1750686643493,-500.0,0.00021917,2]
[367172193,1750686643503,-501.13,0.00021917,2]
[367172194,1750686643513,-460.0,0.00021917,2]
[367172195,1750686643522,-747.37,0.00021917,2]
[367172196,1750686643532,-460.0,0.00021917,2]
[367172197,1750686643541,-460.0,0.00021917,2]
[367172198,1750686643551,-629.54,0.00021917,2]
[367172199,1750686643560,-586.11,0.00021917,2]
[367172200,1750686643570,-460.0,0.00021917,2]
[367172201,1750686643580,-460.0,0.00021917,2]
[367172202,1750686643591,-879.16,0.00021917,2]
[367172203,1750686643601,-460.0,0.00021917,2]
[367172204,1750686643610,-449.73382724,0.00021917,2]
[367172205,1750686643620,-460.0,0.00021917,2]
[367172206,1750686643629,-460.0,0.00021917,2]
[367172207,1750686643639,-460.0,0.00021917,2]
[367172208,1750686643648,-566.11,0.00021917,2]
[367172209,1750686643658,-641.74,0.00021917,2]
[367172210,1750686643668,-590.83,0.00021917,2]
[367172211,1750686643680,-5198.82,0.00021917,2]
[367172213,1750686643689,-743.82,0.00021917,2]
[367172215,1750686643699,-545.1,0.00021917,2]
[367172217,1750686643708,-460.0,0.00021917,2]
[367172219,1750686643717,-460.0,0.00021917,2]
[367172221,1750686643727,-4560.24,0.00021917,2]
[367172223,1750686643737,-460.0,0.00021917,2]
[367172225,1750686643747,-5081.97,0.00021917,2]
[367172227,1750686643756,-460.0,0.00021917,2]
[367172229,1750686643765,-5743.66,0.00021917,2]
[367172231,1750686643774,-3298.22,0.00021917,2]
[367172233,1750686643783,-460.0,0.00021917,2]
[367172235,1750686643793,-460.0,0.00021917,2]
[367172237,1750686643802,-1501.77,0.00021917,2]
[367172239,1750686643811,-460.0,0.00021917,2]
[367172241,1750686643820,-786.58,0.00021917,2]
[367172243,1750686643830,-460.0,0.00021917,2]
[367172245,1750686643842,-460.0,0.00021917,2]
[367172247,1750686643852,-460.0,0.00021917,2]
[367172249,1750686643861,-460.0,0.00021917,2]
[367172251,1750686643872,-460.0,0.00021917,2]
[367172253,1750686643881,-460.0,0.00021917,2]
[367172255,1750686643891,-460.0,0.00021917,2]
[367172257,1750686643901,-460.0,0.00021917,2]
[367172260,1750686643910,-1177.3,0.00021917,2]
[367172262,1750686643920,-460.0,0.00021917,2]
[367172264,1750686643929,-515.93,0.00021917,2]
[367172266,1750686643939,-460.0,0.00021917,2]
[367172268,1750686643948,-460.0,0.00021917,2]
[367172270,1750686643958,-1437.6,0.00021917,2]
[367172272,1750686643967,-460.0,0.00021917,2]
[367172274,1750686643976,-460.0,0.00021917,2]
[367172276,1750686643986,-460.0,0.00021917,2]
[367172278,1750686643996,-500.0,0.00021917,2]
[367172280,1750686644005,-293.4976075,0.00021917,2]
[367172282,1750686644015,-460.0,0.00021917,2]
[367172284,1750686644024,-460.0,0.00021917,2]
[367172286,1750686644033,-1685.24,0.00021917,2]
[367172288,1750686644043,-460.0,0.00021917,2]
[367172290,1750686644052,-460.0,0.00021917,2]
[367172292,1750686644061,-460.0,0.00021917,2]
[367172294,1750686644071,-821.71,0.00021917,2]
[367172296,1750686644080,-837.98,0.00021917,2]
[367172298,1750686644090,-460.0,0.00021917,2]
[367172300,1750686644099,-460.0,0.00021917,2]
[367172302,1750686644108,-460.0,0.00021917,2]
[367172304,1750686644117,-460.0,0.00021917,2]
[367172306,1750686644127,-460.0,0.00021917,2]
[367172308,1750686644137,-938.41,0.00021917,2]
[367172310,1750686644146,-675.31,0.00021917,2]
[367172312,1750686644155,-460.0,0.00021917,2]
[367172314,1750686644165,-460.0,0.00021917,2]
[367172316,1750686644174,-1048.01,0.00021917,2]
[367172318,1750686644184,-460.0,0.00021917,2]
[367172320,1750686644194,-460.0,0.00021917,2]
[367172322,1750686644204,-460.0,0.00021917,2]
[367172324,1750686644213,-460.0,0.00021917,2]
[367172326,1750686644223,-460.0,0.00021917,2]
[367172328,1750686644232,-460.0,0.00021917,2]
[367172330,1750686644242,-848.46,0.00021917,2]
[367172332,1750686644252,-460.0,0.00021917,2]
[367172334,1750686644263,-640.39,0.00021917,2]
[367172336,1750686644272,-460.0,0.00021917,2]
[367172338,1750686644281,-460.0,0.00021917,2]
[367172340,1750686644290,-460.0,0.00021917,2]
[367172342,1750686644300,-460.0,0.00021917,2]
[367172344,1750686644309,-460.0,0.00021917,2]
[367172346,1750686644319,-460.0,0.00021917,2]
[367172348,1750686644328,-460.0,0.00021917,2]
[367172350,1750686644339,-633.16,0.00021917,2]
[367172352,1750686644349,-460.0,0.00021917,2]
[367172354,1750686644359,-460.0,0.00021917,2]
[367172356,1750686644368,-460.0,0.00021917,2]
[367172358,1750686644378,-460.0,0.00021917,2]
[367172360,1750686644387,-500.0,0.00021917,2]
[367172362,1750686644397,-460.0,0.00021917,2]
[367172364,1750686644407,-460.0,0.00021917,2]
[367172366,1750686644417,-460.0,0.00021917,2]
[367172368,1750686644426,-460.0,0.00021917,2]
[367172370,1750686644435,-460.0,0.00021917,2]
[367172372,1750686644445,-2375.28,0.00021917,2]
[367172374,1750686644455,-460.0,0.00021917,2]
[367172376,1750686644464,-587.68,0.00021917,2]
[367172378,1750686644473,-460.0,0.00021917,2]
[367172380,1750686644483,-460.0,0.00021917,2]
[367172382,1750686644492,-763.1,0.00021917,2]
[367172384,1750686644502,-460.0,0.00021917,2]
[367172386,1750686644512,-460.0,0.00021917,2]
[367172388,1750686644521,-1050.76,0.00021917,2]
[367172390,1750686644530,-596.37,0.00021917,2]
[367172392,1750686644540,-460.0,0.00021917,2]
[367172394,1750686644549,-460.0,0.00021917,2]
[367172396,1750686644559,-5783.34,0.00021917,2]
[367172398,1750686644568,-814.85,0.00021917,2]
[367172400,1750686644578,-6394.75,0.00021917,2]
[367172402,1750686644589,-1388.07,0.00021917,2]
[367172404,1750686644599,-460.0,0.00021917,2]
[367172406,1750686644608,-460.0,0.00021917,2]
[367172408,1750686644618,-460.0,0.00021917,2]
[367172410,1750686644630,-460.0,0.00021917,2]
[367172412,1750686644640,-460.0,0.00021917,2]
[367172414,1750686644651,-460.0,0.00021917,2]
[367172416,1750686644661,-612.32,0.00021917,2]
[367172418,1750686644671,-460.0,0.00021917,2]
[367172420,1750686644680,-460.0,0.00021917,2]
[367172422,1750686644689,-2898.21,0.00021917,2]
[367172424,1750686644698,-500.0,0.00021917,2]
[367172426,1750686644708,-1751.96,0.00021917,2]
[367172428,1750686644717,-460.0,0.00021917,2]
[367172430,1750686644727,-1082.23,0.00021917,2]
[367172432,1750686644736,-460.0,0.00021917,2]
[367172434,1750686644746,-460.0,0.00021917,2]
[367172436,1750686644756,-487.55,0.00021917,2]
[367172438,1750686644766,-460.0,0.00021917,2]
[367172440,1750686644775,-1362.57,0.00021917,2]
[367172442,1750686644785,-4034.21,0.00021917,2]
[367172444,1750686644795,-1362.57,0.00021917,2]
[367172446,1750686644804,-1362.57,0.00021917,2]
[367172448,1750686644814,-1362.57,0.00021917,2]
[367172450,1750686644824,-1362.57,0.00021917,2]
[367172452,1750686644833,-1362.57,0.00021917,2]
[367172454,1750686644847,-460.0,0.00021917,2]
[367172456,1750686644856,-460.0,0.00021917,2]
[367172458,1750686644866,-1362.57,0.00021917,2]
[367172460,1750686644876,-460.0,0.00021917,2]
[367172462,1750686644885,-1362.57,0.00021917,2]
[367172464,1750686644895,-1362.57,0.00021917,2]
[367172466,1750686644905,-460.0,0.00021917,2]
[367172468,1750686644914,-1362.57,0.00021917,2]
[367172470,1750686644925,-1362.57,0.00021917,2]
[367172472,1750686644936,-1362.57,0.00021917,2]
[367172474,1750686644946,-460.0,0.00021917,2]
[367172476,1750686644955,-521.58,0.00021917,2]
[367172478,1750686644966,-1362.57,0.00021917,2]
[367172480,1750686644975,-1362.57,0.00021917,2]
[367172482,1750686644985,-1362.57,0.00021917,2]
[367172485,1750686644994,-1362.57,0.00021917,2]
[367172487,1750686645004,-1362.57,0.00021917,2]
[367172489,1750686645013,-460.0,0.00021917,2]
[367172490,1750686645023,-1362.57,0.00021917,2]
[367172492,1750686645032,-1362.57,0.00021917,2]
[367172495,1750686645041,-1362.57,0.00021917,2]
[367172496,1750686645051,-1362.57,0.00021917,2]
[367172499,1750686645061,-1362.57,0.00021917,2]
[367172501,1750686645071,-1362.57,0.00021917,2]
[367172503,1750686645082,-460.0,0.00021917,2]
[367172505,1750686645094,-1362.62,0.00021917,2]
[367172507,1750686645103,-460.0,0.00021917,2]
[367172508,1750686645112,-460.0,0.00021917,2]
[367172509,1750686645121,-460.0,0.00021917,2]
[367172510,1750686645131,-1749.98,0.00021917,2]
[367172511,1750686645140,-460.0,0.00021917,2]
[367172512,1750686645149,-460.0,0.00021917,2]
[367172513,1750686645159,-812.72,0.00021917,2]
[367172514,1750686645168,-460.0,0.00021917,2]
[367172515,1750686645177,-460.0,0.00021917,2]
[367172516,1750686645186,-460.0,0.00021917,2]
[367172517,1750686645195,-169.64197916,0.00021917,2]
[367172518,1750686645204,-635.99,0.00021917,2]
[367172519,1750686645213,-460.0,0.00021917,2]
[367172520,1750686645222,-460.0,0.00021917,2]
[367172521,1750686645232,-460.0,0.00021917,2]
[367172522,1750686645241,-2094.38,0.00021917,2]
[367172523,1750686645252,-774.95,0.00021917,2]
[367172524,1750686645263,-617.86,0.00021917,2]
[367172525,1750686645272,-460.0,0.00021917,2]
[367172526,1750686645285,-460.0,0.00021917,2]
[367172527,1750686645294,-460.0,0.00021917,2]
[367172528,1750686645306,-255.1352784,0.00021917,2]
[367172529,1750686645316,-460.0,0.00021917,2]
[367172530,1750686645326,-460.0,0.00021917,2]
[367172531,1750686645338,-2212.67,0.00021917,2]
[367172532,1750686645347,-803.11,0.00021917,2]
[367172534,1750686645357,-460.0,0.00021917,2]
[367172536,1750686645367,-460.0,0.00021917,2]
[367172537,1750686645376,-15262.56,0.00021917,2]
[367172539,1750686645386,-1070.45,0.00021917,2]
[367172541,1750686645396,-460.0,0.00021917,2]
[367172543,1750686645405,-460.0,0.00021917,2]
[367172545,1750686645415,-460.0,0.00021917,2]
[367172547,1750686645424,-460.0,0.00021917,2]
[367172550,1750686645434,-500.0,0.00021917,2]
[367172552,1750686645443,-500.0,0.00021917,2]
[367172554,1750686645453,-5712.82,0.00021917,2]
[367172556,1750686645462,-460.0,0.00021917,2]
[367172557,1750686645471,-460.0,0.00021917,2]
[367172560,1750686645481,-460.0,0.00021917,2]
[367172561,1750686645490,-2032.59,0.00021917,2]
[367172563,1750686645504,-709.29,0.00021917,2]
[367172565,1750686645513,-460.0,0.00021917,2]
[367172567,1750686645523,-460.0,0.00021917,2]
[367172569,1750686645532,-460.0,0.00021917,2]
[367172571,1750686645542,-460.0,0.00021917,2]
[367172573,1750686645552,-460.0,0.00021917,2]
[367172575,1750686645562,-283.66359152,0.00021917,2]
[367172577,1750686645572,-1301.0,0.00021917,2]
[367172580,1750686645582,-4958.12,0.00021917,2]
[367172582,1750686645595,-523.96,0.00021917,2]
[367172584,1750686645604,-3896.81,0.00021917,2]
[367172586,1750686645614,-460.0,0.00021917,2]
[367172588,1750686645623,-460.0,0.00021917,2]
[367172590,1750686645633,-460.0,0.00021917,2]
[367172592,1750686645642,-3807.36,0.00021917,2]
[367172594,1750686645652,-686.49,0.00021917,2]
[367172596,1750686645662,-460.0,0.00021917,2]
[367172598,1750686645671,-966.91,0.00021917,2]
[367172600,1750686645680,-460.0,0.00021917,2]
[367172602,1750686645690,-936.57,0.00021917,2]
[367172604,1750686645700,-460.0,0.00021917,2]
[367172606,1750686645710,-460.0,0.00021917,2]
[367172608,1750686645719,-1856.69,0.00021917,2]
[367172610,1750686645729,-500.0,0.00021917,2]
[367172612,1750686645738,-460.0,0.00021917,2]
[367172614,1750686645748,-1517.22,0.00021917,2]
[367172616,1750686645758,-528.9,0.00021917,2]
[367172618,1750686645767,-630.82,0.00021917,2]
[367172620,1750686645777,-980.21,0.00021917,2]
[367172622,1750686645787,-643.29,0.00021917,2]
[367172624,1750686645797,-460.0,0.00021917,2]
[367172626,1750686645806,-460.0,0.00021917,2]
[367172628,1750686645815,-460.0,0.00021917,2]
[367172631,1750686645825,-1191.43,0.00021917,2]
[367172633,1750686645834,-2334.14,0.00021917,2]
[367172635,1750686645848,-460.0,0.00021917,2]
[367172637,1750686645857,-2454.79,0.00021917,2]
[367172639,1750686645867,-460.0,0.00021917,2]
[367172640,1750686645876,-460.0,0.00021917,2]
[367172643,1750686645885,-581.44,0.00021917,2]
[367172645,1750686645895,-460.0,0.00021917,2]
[367172646,1750686645904,-460.0,0.00021917,2]
[367172649,1750686645913,-1585.84,0.00021917,2]
[367172651,1750686645923,-460.0,0.00021917,2]
[367172673,1750686646090,-500.0,0.00021917,2]
[367172675,1750686646108,-898.35,0.00021917,2]
[367172677,1750686646118,-460.0,0.00021917,2]
[367172679,1750686646128,-460.0,0.00021917,2]
[367172681,1750686646137,-460.0,0.00021917,2]
[367172683,1750686646147,-460.0,0.00021917,2]
[367172685,1750686646156,-644.97,0.00021917,2]
[367172687,1750686646167,-586.44,0.00021917,2]
[367172689,1750686646177,-460.0,0.00021917,2]
[367172691,1750686646187,-473.13153436,0.00021917,2]
[367172693,1750686646196,-460.0,0.00021917,2]
[367172695,1750686646205,-460.0,0.00021917,2]
[367172697,1750686646214,-460.0,0.00021917,2]
[367172699,1750686646224,-1575.7,0.00021917,2]
[367172701,1750686646237,-161.74308903,0.00021917,2]
[367172704,1750686646255,-460.0,0.00021917,2]
[367172706,1750686646264,-965.74,0.00021917,2]
[367172708,1750686646274,-7349.94,0.00021917,2]
[367172710,1750686646283,-460.69810951,0.00021917,2]
[367172712,1750686646294,-523.1,0.00021917,2]
[367172715,1750686646303,-460.0,0.00021917,2]
[367172717,1750686646312,-460.0,0.00021917,2]
[367172719,1750686646322,-460.0,0.00021917,2]
[367172721,1750686646333,-635.44,0.00021917,2]
[367172723,1750686646348,-1069.63,0.00021917,2]
[367172725,1750686646358,-400.0,0.00021918,7]
[367172728,1750686646368,-150.0,0.00021918,2]
[367172730,1750686646378,-500.0,0.00021918,2]
[367172732,1750686646387,-500.0,0.00021918,2]
[367172734,1750686646397,-500.0,0.00021918,2]
[367172736,1750686646406,-359.5326413,0.00021918,2]
[367172738,1750686646415,-1235.81279827,0.00021931,2]
[367172740,1750686646425,-210.36969052,0.00021944,2]
[367172742,1750686646435,-151.0,0.00021944,2]
[367172744,1750686646445,-151.0,0.00021944,2]
[367172746,1750686646454,-119129.94558337,0.00021969,2]
[367172748,1750686646464,-198.0,0.00021972,2]
[367172750,1750686646474,-575.20353236,0.00021973,2]
[367172752,1750686646483,-500.0,0.00021973,2]
[367172754,1750686646492,-352.66742282,0.00021973,2]
[367172756,1750686646502,-500.0,0.00021973,2]
[367172758,1750686646511,-500.0,0.00021973,2]
[367172759,1750686646522,-500.0,0.00021973,2]
[367172761,1750686646532,-539.12807305,0.00021973,2]
[367172764,1750686646541,-500.0,0.00021973,2]
[367172766,1750686646552,-500.0,0.00021973,2]
[367172768,1750686646562,-500.0,0.00021973,2]
[367172770,1750686646572,-500.0,0.00021973,2]
[367172772,1750686646583,-500.0,0.00021973,2]
[367172774,1750686646595,-500.0,0.00021973,2]
[367172776,1750686646604,-500.0,0.00021973,2]
[367172778,1750686646615,-500.0,0.00021973,2]
[367172780,1750686646624,-500.0,0.00021973,2]
[367172782,1750686646633,-550.35644472,0.00021973,2]
[367172784,1750686646643,-500.0,0.00021973,2]
[367172786,1750686646653,-500.0,0.00021973,2]
[367172788,1750686646662,-168.0,0.00021984,2]
[367172790,1750686646671,-92400.97606665,0.0002199,2]
[367172792,1750686646681,-467.6,0.00021991,4]
[367172794,1750686646690,-21331.96557482,0.00022,2]
[367172796,1750686646700,-163606.57884799,0.00022,2]
[367172798,1750686646709,-386.63703508,0.00022,2]
[367172800,1750686646719,-161.29545787,0.00022,2]
[367172802,1750686646728,-151.0,0.00022,7]
[367172804,1750686646737,-151.0,0.00022,7]